Cogmind - Beta 14 @@@ ROGUE MODE // 2025.03.07 @ 00:33:07 Player: mix Result: Destroyed by ZU-JEG(R) with Subdweller Laser Performance ------------- Evolutions (0) 0 Regions Visited (3) 600 Robots Destroyed (13) 65 Value Destroyed (418) 418 Prototype IDs (0) 0 Alien Tech Used (0) 0 Bonus (0) 0 TOTAL SCORE: 1083 Bonus ------- None Cogmind --------- Core Integrity 0/250 Matter 6/300 Energy 100/100 System Corruption 0% Temperature Cool (6) Movement Treading (160) Location -10/Subcaves Parts ------- > --- POWER (1) -------- (None) > --- PROPULSION (2) --- Light Treads Subdweller Monowheel > --- UTILITY (2) ------ (None) > --- WEAPON (2) ------- Bore Cannon Subdweller Shrapnel Launcher > --- INVENTORY (5) ---- Heat Sink Small Storage Unit Dirty Datajack (20) Flamer Peak State ------------ > --- POWER ------------ (None) > --- PROPULSION ------- Light Treads Subdweller Monowheel > --- UTILITY ---------- Scrap Shield > --- WEAPON ----------- Bore Cannon Subdweller Shrapnel Launcher > --- INVENTORY -------- Heat Sink Small Storage Unit Dirty Datajack Flamer [Rating: 15] Favorites ----------- Power Ion Engine Engine Ion Engine Propulsion Light Treads Treads Light Treads Wheel Subdweller Monowheel Utility Small Storage Unit Device Heat Sink Storage Small Storage Unit Protection Scrap Shield Weapon Bore Cannon Energy Gun Small Laser Energy Cannon Beam Cannon Ballistic Gun Light Assault Rifle Ballistic Cannon Bore Cannon Launcher Subdweller Shrapnel Launcher Build | -11 -10 -10 -10 ------- Run | Yrd Mat Min Sub Slots Evolved . | . . . . Power . | . . . . Propulsion . | . . . . Utility . | . . . . Weapon . | . . . . Parts Attached 19 | 6 6 1 6 Power 2 | 1 1 . . Engine 2 | 1 1 . . Core . | . . . . Reactor . | . . . . Propulsion 5 | 2 . 1 2 Treads 4 | 2 . 1 1 Leg . | . . . . Wheel 1 | . . . 1 Hover . | . . . . Flight . | . . . . Utility 4 | 1 2 . 1 Device 2 | . 2 . . Storage 1 | 1 . . . Processor . | . . . . Hackware . | . . . . Protection 1 | . . . 1 Artifact . | . . . . Weapon 8 | 2 3 . 3 Energy Gun 3 | 1 1 . 1 Energy Cannon 1 | . 1 . . Ballistic Gun 2 | 1 1 . . Ballistic Cannon 1 | . . . 1 Launcher 1 | . . . 1 Special Weapon . | . . . . Impact Weapon . | . . . . Slashing Weapon . | . . . . Piercing Weapon . | . . . . Special Melee Weapon . | . . . . Unidentified Prototypes . | . . . . Parts Lost 4 | . . 1 3 Power 1 | . . . 1 Propulsion 1 | . . 1 . Utility 1 | . . . 1 Weapon 1 | . . . 1 Highest Loss Streak 2 | . . 1 2 To Critical Strikes . | . . . . Average Slot Usage (%) 84 | . 93 99 77 Engine 5 | . 14 14 . Treads 19 | . 28 27 14 Wheel 8 | . . . 13 Device 8 | . 8 14 7 Storage 9 | . 14 14 7 Protection 4 | . . . 6 Energy Gun 7 | . 23 14 1 Energy Cannon 2 | . 1 14 . Ballistic Cannon 8 | . . . 14 Launcher 7 | . . . 11 Peak Build Rating 15 | 6 7 8 15 Average Rating 11 | 4 6 7 13 On Entrance 5 | . 6 7 8 Naked Turns . | . . . . Heaviest Build 35 | 12 15 15 35 Greatest Support 40 | 40 40 40 40 Greatest Overweight (x) 1 | . . . 1 Average Overweight (x) . | . . . . Largest Inventory Capacity 8 | 8 8 8 8 Average Capacity 7 | 6 8 8 6 Most Carried 8 | 5 2 4 8 Average Carried 4 | . . 2 5 Final Capacity 8 | 8 8 8 5 Final Carried 4 | . 2 3 4 Class Distribution -------------------- 70% | Mutant 29% | Subdweller-Mutant Dominant Class ---------------- Mutant | -10/Materials Mutant | -10/Mines Mutant | -10/Subcaves Resources | -11 -10 -10 -10 ----------- Run | Yrd Mat Min Sub Matter Collected 500 | 183 59 83 175 Remotely . | . . . . Salvage Created 344 | . 138 82 124 Parts 19 | . 8 5 6 Haulers Intercepted . | . . . . Recyclers Shooed . | . . . . Parts Field Recycled . | . . . . Retrieved Matter . | . . . . Parts Self-Destructed 5 | . . . 5 Prevented . | . . . . Kills | -11 -10 -10 -10 ------- Run | Yrd Mat Min Sub Combat Hostiles Destroyed 17 | . 5 7 5 Guns 6 | . 5 1 . Cannons 7 | . . 4 3 AOE 4 | . . 2 2 Classes Destroyed 4 | . 2 1 1 Swarmer 6 | . 3 3 . Grunt 2 | . 2 . . Subdweller 5 | . . . 5 Assembled 4 | . . 4 . Best Kill Streak 3 | . 3 3 2 Combat Bots Only 3 | . 3 3 2 Max Kills in Single Turn 2 | . 1 2 1 Gunslinging . | . . . . Exploded 2 | . . 2 1 Melee . | . . . . Uniques/NPCs Destroyed . | . . . . Combat | -11 -10 -10 -10 -------- Run | Yrd Mat Min Sub Hostile Shots Fired 124 | . 29 38 57 Missed 36 | . 6 8 22 Damage Taken 1481 | . 196 470 815 Core 255 | . 31 89 135 Absorbed by Shields . | . . . . Core Remaining (%) 100 | 100 . . . Volleys Fired 68 | . 16 21 31 Largest 2 | . 2 2 2 Hottest 100 | . 80 100 97 Shots Fired 111 | . 32 42 37 Gun 58 | . 32 21 5 Cannon 38 | . . 21 17 Launcher 15 | . . . 15 Special . | . . . . Kinetic 32 | . . . 32 Thermal 79 | . 32 42 5 Explosive . | . . . . Electromagnetic . | . . . . Robot Hit Streak 21 | . 5 3 21 Robot Miss Streak 6 | . 5 6 2 Penetration Max . | . . . . Secondary Targets . | . . . . Shots Hit Robots 59 | . 18 17 24 Core Hits 30 | . 8 10 12 Critical Kills 1 | . . . 1 Critical Parts Destroyed . | . . . . Critical Strikes 7 | . . . 7 Destroy 7 | . . . 7 Melee Attacks . | . . . . Impact . | . . . . Slashing . | . . . . Piercing . | . . . . Sneak Attacks . | . . . . Combat Hostiles . | . . . . Follow-up Attacks . | . . . . Damage Inflicted 1444 | . 239 394 811 Guns 387 | . 239 90 58 Cannons 419 | . . 156 263 Explosions 638 | . . 148 490 Melee . | . . . . Ramming . | . . . . Kinetic 753 | . . . 753 Thermal 691 | . 239 394 58 Explosive . | . . . . Electromagnetic . | . . . . Impact . | . . . . Slashing . | . . . . Piercing . | . . . . Highest Corruption . | . . . . Average Corruption . | . . . . Corruption Purged . | . . . . Corruption Blocked . | . . . . Overload Shots . | . . . . Overflow Damage 37 | . . 37 . Projectiles . | . . . . Explosions 37 | . . 37 . Melee . | . . . . Knockbacks 2 | . . . 2 Impact . | . . . . Kinetic 2 | . . . 2 Secondary . | . . . . Self-Inflicted Damage 175 | . . 107 68 Shots 6 | . . 3 3 Rammed . | . . . . Targets Rammed . | . . . . Kicked . | . . . . Crushed . | . . . . Highest Temperature 171 | . 36 171 . Average Temperature 69 | . 12 80 . Received Heat Transfer 150 | . 36 . 114 Siege Activations . | . . . . Robots Corrupted . | . . . . Combat Hostiles . | . . . . Parts Fried . | . . . . Impact Corruptions . | . . . . Robots Melted . | . . . . Combat Hostiles . | . . . . Parts Melted . | . . . . Heat Transferred 1383 | . 525 733 125 Parts Sabotaged . | . . . . Parts Stolen . | . . . . Parts Stripped . | . . . . Power Chain Reactions . | . . . . Alert | -11 -10 -10 -10 ------- Run | Yrd Mat Min Sub Peak Influence 297 | . 144 297 . Initial 55 | . . 55 . Average 171 | . 79 293 . Maximum Alert Level 1 | . . 1 . Low Security (%) 54 | 100 100 . . Level 1 45 | . . 99 . Level 2 . | . . . . Level 3 . | . . . . Level 4 . | . . . . Level 5 . | . . . . High Security . | . . . . Max Security . | . . . . Squads Dispatched 2 | . 2 . . Investigation . | . . . . Extermination . | . . . . Reinforcement 2 | . 2 . . Assault . | . . . . Garrison . | . . . . Intercept . | . . . . Searches Triggered . | . . . . Construction Impeded . | . . . . Haulers Reinforced . | . . . . Active Scanning Responses . | . . . . Cargo Convoy Interrupts . | . . . . Stealth | -11 -10 -10 -10 --------- Run | Yrd Mat Min Sub Distress Signals . | . . . . Communications Jammed . | . . . . Distress Signals . | . . . . Times Spotted 23 | . 9 6 8 Peak Tracking Total 4 | . 4 3 3 Tactical Retreats . | . . . . Traps | -11 -10 -10 -10 ------- Run | Yrd Mat Min Sub Traps Triggered . | . . . . Indirectly . | . . . . Trap Hack Attempts . | . . . . Triggered . | . . . . Disarmed . | . . . . Reprogrammed . | . . . . Reused . | . . . . Traps Extracted . | . . . . Installed . | . . . . Triggered . | . . . . Machines | -11 -10 -10 -10 ---------- Run | Yrd Mat Min Sub Machines Disabled 9 | . . 9 . Max in Single Turn 9 | . . 9 . Machines Repaired . | . . . . Machines Dismantled . | . . . . Machines Sabotaged . | . . . . Overloaded Fab Kills . | . . . . Hacking | -11 -10 -10 -10 --------- Run | Yrd Mat Min Sub Machines Accessed 3 | . 2 . 1 Terminals 1 | . 1 . . Fabricators . | . . . . Repair Stations . | . . . . Recycling Units 1 | . 1 . . Scanalyzers . | . . . . Garrison Access . | . . . . Total Hacks 9 | . 4 . 5 Successful 7 | . 2 . 5 Failed 2 | . 2 . . Catastrophic . | . . . . Database Lockouts . | . . . . Manual 5 | . 4 . 1 Terminals 3 | . 3 . . Fabricators . | . . . . Repair Stations . | . . . . Recycling Units 1 | . 1 . . Scanalyzers . | . . . . Garrison Access . | . . . . Terminal Hacks 5 | . . . 5 Record 5 | . . . 5 Fabricator Hacks . | . . . . Repair Station Hacks . | . . . . Recycling Unit Hacks . | . . . . Scanalyzer . | . . . . Garrison Access Hacks . | . . . . Unauthorized Hacks 2 | . 2 . . Terminals 1 | . 1 . . Botnet 1 | . 1 . . Fabricators . | . . . . Repair Stations . | . . . . Recycling Units 1 | . 1 . . Reject 1 | . 1 . . Scanalyzers . | . . . . Garrison Access . | . . . . Data Cores Recovered . | . . . . Used . | . . . . Hacking Detections 1 | . 1 . . Full Trace Events . | . . . . Feedback Events . | . . . . Feedback Blocked . | . . . . Robot Schematics Acquired . | . . . . Robots Built . | . . . . Authchips . | . . . . Time . | . . . . Total Robot Build Rating . | . . . . Part Schematics Acquired . | . . . . Parts Built . | . . . . Authchips . | . . . . Time . | . . . . Total Part Build Rating . | . . . . Parts Repaired . | . . . . Time . | . . . . Parts Recycled . | . . . . Recycled Matter . | . . . . Retrieved Matter . | . . . . Retrieved Components . | . . . . Parts Scanalyzed . | . . . . Part Schematics Acquired . | . . . . Parts Damaged . | . . . . Bothacking | -11 -10 -10 -10 ------------ Run | Yrd Mat Min Sub Used RIF Installer . | . . . . Robots Hacked . | . . . . Non-combat . | . . . . Combat . | . . . . Robot Hacks Applied . | . . . . Relay Couplers Released . | . . . . Fabnet Peak Effective % . | . . . . Robots Rewired . | . . . . Allies Hacked . | . . . . Hacks Repelled . | . . . . Allies | -11 -10 -10 -10 -------- Run | Yrd Mat Min Sub Total Allies . | . . . . Largest Group . | . . . . Highest-Rated Group . | . . . . Highest-Rated Ally . | . . . . Total Orders . | . . . . Ally Attacks . | . . . . Total Damage . | . . . . Kills . | . . . . Allies Corrupted . | . . . . Allies Melted . | . . . . Intel | -11 -10 -10 -10 ------- Run | Yrd Mat Min Sub Robot Analysis Total . | . . . . Derelict Logs Recovered 2 | . . . 2 Drone Launches . | . . . . Drone Recoveries . | . . . . Exploration | -11 -10 -10 -10 ------------- Run | Yrd Mat Min Sub Turns Passed 1757 | 49 314 307 1087 Spaces Moved 937 | 32 153 128 624 Core 12 | 12 . . . Treads 535 | 20 153 128 234 Legs . | . . . . Wheels 390 | . . . 390 Hover . | . . . . Flight . | . . . . Fastest Speed 50 | 50 160 160 110 Average Speed 158 | 118 160 160 160 Slowest Speed 240 | 160 160 160 240 Overloaded Moves . | . . . . Propulsion Burnouts . | . . . . Robots Hopped . | . . . . Cave-ins Triggered . | . . . . Exploration Rate (%) 29 | 3 36 43 34 Regions Visited 3 Branch Regions 2 Pre-discovered Areas 1 | . . . 1 Known Exits Taken . | . . . . Unknown Exits Taken 3 | 1 1 1 . Scrap Searched 1 | . . 1 . Spaces Dug 9 | . . . 9 Terrain Destroyed 203 | . . 32 171 Melee . | . . . . Projectile 3 | . . . 3 AOE 200 | . . 32 168 Terrain Rammed . | . . . . Walls Destroyed . | . . . . Machines Disabled . | . . . . Actions | -11 -10 -10 -10 --------- Run | Yrd Mat Min Sub Total 1098 | 43 190 188 677 Wait 40 | . 3 37 . Move 934 | 31 152 127 624 Hop . | . . . . Pick Up 24 | 6 8 2 8 Fast Attach . | . . . . Attach 10 | 6 1 1 2 Detach . | . . . . Swap 9 | . 5 . 4 Drop 12 | . 5 . 7 Fire 68 | . 16 21 31 Melee . | . . . . Ram . | . . . . Kick . | . . . . Crush . | . . . . Escape Stasis . | . . . . Rewire . | . . . . Trap . | . . . . Miscellaneous 1 | . . . 1 Route ------- -11/Scrapyard -10/Materials -10/Mines -10/Subcaves (discovered 1 exit: [*Mat]) History --------- Turn | Location | Event 21 | -11/Scrapyard | Discovered new exit (range 16) 50 | -11/Scrapyard | Entered Materials 300 | -10/Materials | Discovered new exit (range 8) 302 | -10/Materials | Build established: Mutant 364 | -10/Materials | Entered Mines 504 | -10/Mines | Assembled infested the area 509 | -10/Mines | Assisted by a Guerilla fighting off Assembled 667 | -10/Mines | Discovered new exit (range 3) 671 | -10/Mines | Entered Subcaves 671 | -10/Subcaves | Learned location of Storage (-8) 691 | -10/Subcaves | Core integrity fell below 50% 719 | -10/Subcaves | Core integrity fell below 20% 742 | -10/Subcaves | Visited Clippyterm 745 | -10/Subcaves | Learned Research machine intel 745 | -10/Subcaves | Learned Factory emergency access door positions 779 | -10/Subcaves | Shifting Twisted Machinery released Scrap Shield 790 | -10/Subcaves | Shifting Twisted Machinery released Scrap Shield 841 | -10/Subcaves | Shifting Twisted Machinery released Sub. Shrapnel Launcher 843 | -10/Subcaves | Shifting Twisted Machinery released Flamer 1079 | -10/Subcaves | Discovered new exit (range 6) 1183 | -10/Subcaves | Shifting Twisted Machinery released Battle Cannon 1185 | -10/Subcaves | Shifting Twisted Machinery released Mak. Sword 1503 | -10/Subcaves | Build established: Subdweller-Mutant 1758 | -10/Subcaves | Destroyed by ZU-JEG(R) with Subdweller Laser Last Messages --------------- Dropped Heat Sink. Acquired Sml. Storage Unit. Acquired Heat Sink. Subatomizers dissect the Sub. Power Source. Acquired Scrap Shield Fragment. Subatomizers dissect the Flexi-carbon Leg. Subatomizers dissect the Disposable Heat Sink. L3-9TD(R) destroyed. DP-AVX(R): "NAT20!" HV Slug penetrates DP-AVX(R). DP-AVX(R) suffers critical hit (Destroy). DP-AVX(R) destroyed. Acquired 1 matter. Acquired 5 matter. HV Slug penetrates Wall. Dropped Scrap Shield Fragment. Scrap Shield Fragment affixed to Scrap Shield (+43). ZU-JEG(R) emerges from concealment. Scrap Shield destroyed. Map ----- +----------------------------------------------------+ | ?# #### ##### # ????? #???# ?## | | ?# ## ##??#" ### # #?????# ????# # | | ?## ####???#" """ #?????# # #?????# | | ??# ##????#" #??????? ## #?????## | | ??# ##???#" #????? #??? ?# #??????### | | ??##"" ##??#" #????# #?????## #????????? | | ???## #??#"" "# ##### #?????# #????????# | | ????# #??##"" "# #?????# #####????# | | ????## ##?## """ "# ####??# ##""##???# | | ?????## ###" " #" " ""## ### "" ####? | | ??????# """ "#""""" ; "### ### " #? | | ??????# " """""";# ; ; "# ## "" #? | | ??????## "" " ;;# R ""## | | ???????##"" "## | | ????????##""" R # | | ?????????## """ " ;; | | ??????????### # # ;; ;#### [ [ " | | ????????????####### #; ;#### #### | | ???????????????##### #??? | | ?????????????### ##### #??? | | ????????????##" # # #??? | | ???????????##" ## ## #??? | | ??????? ""##" ## ###########? | | ???????"""""" # ## ### ##????# ## | | ?????#"" ### ######### #?## ##???# | | ?????##"# ????###???????#@ ##??## ##### | | ????????????????????????# ##????# | | ?????????????????????#### ##????# ## | | ?????????????????????# #????# #### """"""" | | ?????????????????????# #????# ##?## | | ?????????????????????## ##????# #??# # | | ??????????????????????# ##?????# #??## # ## | | ??????????????????????####??????## #???#" ####" ! | | ?????????????????????????????????# ????#" # # [ | | ?????????????????????????????????##????#" | | ???????????????????????????????????????# " | | ???????????????????????????????????????# "#"# | | ???????????????????????????????????????## ##### | | ????????????????????????????????????????# ##???# | | ????????????????????????????????????????## ##????? | | ?????????????????????????????????????????###?????? | | ?????????????????????????????????????????????????? | | ?????????????????????????????????????????????????? | | ?????????????????????????????????????????????????? | | ?????????????????????????????????????????????????? | | ?????????????????????????????????????????????????? | | ?????????????????????????????????????????????????? | | ?????????????????????????????????????????????????? | | ?????????????????????????????????????????????????? | | ?????????????????????????????????????????????????? | +----------------------------------------------------+ Best States ------------- Heat Dissipation 35 Energy Generation 10 Energy Capacity 250 Matter Stores 300 Matter Capacity 300 Sight Range 16 Terrain Scan Density 10 Armor Coverage 800 Evasion (%) 50 Recoil Reduction 2 Item Schematics ----------------- None Robot Schematics ------------------ None Fabricated ------------ Nothing Alien Tech Used ----------------- None Achievements -------------- None Challenges ------------ None Game ------ Seed BiocellSuperdenseMapper Manual? 0 Play Time 00:12:45 Cumulative 59.3 hours Start 2025.03.07 @ 00:18:45 End 2025.03.07 @ 00:33:07 Sessions 1 Manual Loads 0 Difficulty Rogue Special Mode None Game No. 87 Rogue 73 Adventurer 14 Explorer 0 Win Type - Total 0 Types 0/0/0/0/0/0/0/0/0 Lore% 20 Gallery% 41 Achievement% 38 Wizard Run 0 Options --------- Layout 1 ASCII 0 Keyboard 0 Movement Mouse Keybinds 0 Fullscreen 1 Font 24/Smallcaps Map View 50x35 Zoom Use 0% Tactical HUD 0 Map Filters NONE Filters NONE Steam 1 RUN: a80bbfd9-e22e-4926-ae94-0f6fab2991e0